[Event "Titled Tuesday Blitz November 22 Late 2022"]
[White "Rosen, Eric"]
[Black "Ghazarian, Kirk"]
[WhiteFideId "2032562"]
[BlackFideId "30908604"]
[WhiteElo "2362"]
[BlackElo "2346"]
[Result "1-0"]
[Round "09"]
[TimeControl "180+1"]
[Date "2022.11.22"]
[WhiteClock "0:00:11"]
[BlackClock "0:00:09"]

1. d4 {[%clk 0:02:56]}  Nf6 {[%clk 0:02:59]} 2. Bf4 {[%clk 0:02:56]}  g6 {[%clk 0:02:57]} 3. Nc3 {[%clk 0:02:47]}  d5 {[%clk 0:02:56]} 4. e3 {[%clk 0:02:42]}  Bg7 {[%clk 0:02:56]} 5. h4 {[%clk 0:02:42]}  h5 {[%clk 0:02:56]} 6. Nf3 {[%clk 0:02:42]}  Bg4 {[%clk 0:02:55]} 7. Qd2 {[%clk 0:02:42]}  O-O {[%clk 0:02:53]} 8. Ne5 {[%clk 0:02:40]}  Be6 {[%clk 0:02:49]} 9. Be2 {[%clk 0:02:34]}  Nbd7 {[%clk 0:02:48]} 10. O-O {[%clk 0:02:29]}  c6 {[%clk 0:02:40]} 11. a4 {[%clk 0:02:28]}  a5 {[%clk 0:02:35]} 12. f3 {[%clk 0:02:21]}  Ne8 {[%clk 0:02:30]} 13. e4 {[%clk 0:02:07]}  Nd6 {[%clk 0:02:21]} 14. Bh6 {[%clk 0:01:57]}  Nxe5 {[%clk 0:02:03]} 15. dxe5 {[%clk 0:01:54]}  Nc4 {[%clk 0:01:58]} 16. Bxc4 {[%clk 0:01:50]}  dxc4 {[%clk 0:01:59]} 17. Qxd8 {[%clk 0:01:41]}  Rfxd8 {[%clk 0:01:59]} 18. Bxg7 {[%clk 0:01:42]}  Kxg7 {[%clk 0:02:00]} 19. Rfd1 {[%clk 0:01:38]}  Rxd1+ {[%clk 0:01:51]} 20. Rxd1 {[%clk 0:01:37]}  Rb8 {[%clk 0:01:51]} 21. Kf2 {[%clk 0:01:21]}  b5 {[%clk 0:01:50]} 22. Ra1 {[%clk 0:01:21]}  b4 {[%clk 0:01:48]} 23. Ne2 {[%clk 0:01:21]}  Rd8 {[%clk 0:01:45]} 24. Ke3 {[%clk 0:01:22]}  c5 {[%clk 0:01:36]} 25. Nf4 {[%clk 0:01:09]}  Bc8 {[%clk 0:01:34]} 26. Nd5 {[%clk 0:00:59]}  e6 {[%clk 0:01:35]} 27. Nf6 {[%clk 0:00:57]}  Ba6 {[%clk 0:01:23]} 28. g4 {[%clk 0:00:44]}  hxg4 {[%clk 0:01:24]} 29. fxg4 {[%clk 0:00:45]}  b3 {[%clk 0:01:14]} 30. Rc1 {[%clk 0:00:26]}  bxc2 {[%clk 0:01:02]} 31. Rxc2 {[%clk 0:00:25]}  Rd3+ {[%clk 0:01:03]} 32. Kf4 {[%clk 0:00:26]}  Rd1 {[%clk 0:00:54]} 33. h5 {[%clk 0:00:26]}  Rf1+ {[%clk 0:00:45]} 34. Kg5 {[%clk 0:00:26]}  gxh5 {[%clk 0:00:43]} 35. Rh2 {[%clk 0:00:21]}  Rd1 {[%clk 0:00:20]} 36. Rxh5 {[%clk 0:00:20]}  Rd8 {[%clk 0:00:21]} 37. Rh2 {[%clk 0:00:11]}  Bb7 {[%clk 0:00:20]} 38. Rc2 {[%clk 0:00:10]}  Rd4 {[%clk 0:00:20]} 39. Rh2 {[%clk 0:00:07]}  Bxe4 {[%clk 0:00:19]} 40. Rh3 {[%clk 0:00:03]}  Bg6 {[%clk 0:00:14]} 41. Rc3 {[%clk 0:00:03]}  Bd3 {[%clk 0:00:13]} 42. Rc1 {[%clk 0:00:03]}  Rd8 {[%clk 0:00:09]} 43. Rh1 {[%clk 0:00:02]}  Bg6 {[%clk 0:00:07]} 44. Rc1 {[%clk 0:00:02]}  Rd4 {[%clk 0:00:07]} 45. Rg1 {[%clk 0:00:01]}  Kf8 {[%clk 0:00:07]} 46. Rc1 {[%clk 0:00:02]}  Ke7 {[%clk 0:00:07]} 47. Rh1 {[%clk 0:00:03]}  Rd2 {[%clk 0:00:06]} 48. Rh8 {[%clk 0:00:03]}  Rd8 {[%clk 0:00:07]} 49. Rxd8 {[%clk 0:00:02]}  Kxd8 {[%clk 0:00:08]} 50. Kf4 {[%clk 0:00:02]}  Bc2 {[%clk 0:00:06]} 51. Ke3 {[%clk 0:00:02]}  Bxa4 {[%clk 0:00:06]} 52. Kd2 {[%clk 0:00:03]}  Bc6 {[%clk 0:00:06]} 53. Kc3 {[%clk 0:00:03]}  Bd5 {[%clk 0:00:07]} 54. g5 {[%clk 0:00:03]}  Ke7 {[%clk 0:00:07]} 55. Ng4 {[%clk 0:00:03]}  Kf8 {[%clk 0:00:07]} 56. Kd2 {[%clk 0:00:02]}  Kg7 {[%clk 0:00:07]} 57. Ke3 {[%clk 0:00:03]}  Kg6 {[%clk 0:00:07]} 58. Kf4 {[%clk 0:00:03]}  a4 {[%clk 0:00:07]} 59. Ne3 {[%clk 0:00:04]}  c3 {[%clk 0:00:06]} 60. bxc3 {[%clk 0:00:03]}  a3 {[%clk 0:00:07]} 61. Nc2 {[%clk 0:00:03]}  Bb3 {[%clk 0:00:07]} 62. Nxa3 {[%clk 0:00:03]}  c4 {[%clk 0:00:06]} 63. Nb5 {[%clk 0:00:03]}  Kg7 {[%clk 0:00:06]} 64. Nd6 {[%clk 0:00:04]}  Kg6 {[%clk 0:00:07]} 65. Nb7 {[%clk 0:00:04]}  Kg7 {[%clk 0:00:06]} 66. Na5 {[%clk 0:00:04]}  Kg6 {[%clk 0:00:07]} 67. Nc6 {[%clk 0:00:05]}  Kg7 {[%clk 0:00:07]} 68. Ne7 {[%clk 0:00:05]}  Kf8 {[%clk 0:00:07]} 69. Nc8 {[%clk 0:00:06]}  Kg7 {[%clk 0:00:07]} 70. Nd6 {[%clk 0:00:07]}  Kf8 {[%clk 0:00:08]} 71. Ne4 {[%clk 0:00:08]}  Kg7 {[%clk 0:00:09]} 72. Nf6 {[%clk 0:00:08]}  Kf8 {[%clk 0:00:09]} 73. Ng4 {[%clk 0:00:09]}  Kg7 {[%clk 0:00:09]} 74. Ne3 {[%clk 0:00:09]}  Kf8 {[%clk 0:00:10]} 75. Ng2 {[%clk 0:00:10]}  Ke7 {[%clk 0:00:10]} 76. Nh4 {[%clk 0:00:11]}  Bc2 {[%clk 0:00:10]} 77. Nf3 {[%clk 0:00:11]}  Bd3 {[%clk 0:00:10]} 78. Nd4 {[%clk 0:00:11]}  Kd7 {[%clk 0:00:10]} 79. Ke3 {[%clk 0:00:10]}  Kc7 {[%clk 0:00:11]} 80. Nf3 {[%clk 0:00:10]}  Kc6 {[%clk 0:00:10]} 81. Kd4 {[%clk 0:00:11]}  Kd7 {[%clk 0:00:10]} 82. Nd2 {[%clk 0:00:11]}  Be2 {[%clk 0:00:09]} 83. Nxc4 {[%clk 0:00:11]}  Ke8 {[%clk 0:00:10]} 84. Nd6+ {[%clk 0:00:11]}  Kf8 {[%clk 0:00:10]} 85. c4 {[%clk 0:00:11]}  Kg7 {[%clk 0:00:10]} 86. c5 {[%clk 0:00:10]}  Kg6 {[%clk 0:00:09]} 87. c6 {[%clk 0:00:11]}  Kxg5 {[%clk 0:00:08]} 88. c7 {[%clk 0:00:11]}  Ba6 {[%clk 0:00:08]} 89. Kc5 {[%clk 0:00:11]}  f6 {[%clk 0:00:09]} 90. Kb6 {[%clk 0:00:11]} 1-0


[Site "https://www.chess.com"]

[Event "Titled Tuesday Blitz November 22 Late 2022"]
[White "Rubio Tent, Francisco"]
[Black "Desideri, Ricardo Maruchi"]
[WhiteFideId "2238233"]
[BlackFideId "2110440"]
[WhiteElo "2211"]
[BlackElo "1945"]
[Result "1-0"]
[Round "09"]
[TimeControl "180+1"]
[Date "2022.11.23"]
[WhiteClock "0:00:32"]
[BlackClock "0:00:11"]

1. e4 {[%clk 0:02:57]}  c5 {[%clk 0:02:59]} 2. Nf3 {[%clk 0:02:57]}  d6 {[%clk 0:03:00]} 3. d4 {[%clk 0:02:57]}  cxd4 {[%clk 0:03:00]} 4. Nxd4 {[%clk 0:02:58]}  Nf6 {[%clk 0:03:01]} 5. Nc3 {[%clk 0:02:58]}  a6 {[%clk 0:03:01]} 6. f4 {[%clk 0:02:59]}  Qc7 {[%clk 0:02:59]} 7. Bd3 {[%clk 0:02:57]}  Nbd7 {[%clk 0:02:55]} 8. a4 {[%clk 0:02:56]}  b6 {[%clk 0:02:50]} 9. Be3 {[%clk 0:02:55]}  e6 {[%clk 0:02:50]} 10. O-O {[%clk 0:02:54]}  Bb7 {[%clk 0:02:51]} 11. Qf3 {[%clk 0:02:47]}  Be7 {[%clk 0:02:50]} 12. Rae1 {[%clk 0:02:46]}  O-O {[%clk 0:02:50]} 13. Kh1 {[%clk 0:02:46]}  Rac8 {[%clk 0:02:45]} 14. Qh3 {[%clk 0:02:42]}  Nc5 {[%clk 0:02:42]} 15. e5 {[%clk 0:02:21]}  dxe5 {[%clk 0:02:28]} 16. fxe5 {[%clk 0:02:20]}  Qxe5 {[%clk 0:01:56]} 17. Bg1 {[%clk 0:01:57]}  Qh5 {[%clk 0:01:44]} 18. Qxh5 {[%clk 0:01:24]}  Nxh5 {[%clk 0:01:44]} 19. Be2 {[%clk 0:01:21]}  Nf6 {[%clk 0:01:41]} 20. Bf3 {[%clk 0:01:18]}  Bxf3 {[%clk 0:01:39]} 21. Rxf3 {[%clk 0:01:19]}  Rfd8 {[%clk 0:01:38]} 22. Nf5 {[%clk 0:01:09]}  exf5 {[%clk 0:01:34]} 23. Rxe7 {[%clk 0:01:03]}  Re8 {[%clk 0:01:16]} 24. Rxe8+ {[%clk 0:01:00]}  Rxe8 {[%clk 0:01:16]} 25. a5 {[%clk 0:00:56]}  Nce4 {[%clk 0:00:17]} 26. axb6 {[%clk 0:00:46]}  Nxc3 {[%clk 0:00:17]} 27. Rxc3 {[%clk 0:00:47]}  Ne4 {[%clk 0:00:15]} 28. Rc6 {[%clk 0:00:32]}  g6 {[%clk 0:00:13]} 29. b7 {[%clk 0:00:32]}  Kg7 {[%clk 0:00:11]} 30. Rc8 {[%clk 0:00:32]} 1-0


[Site "https://www.chess.com"]

[Event "Titled Tuesday Blitz November 22 Late 2022"]
[White "Sadhwani, Raunak"]
[Black "Gadimbayli, Abdulla"]
[WhiteFideId "35093487"]
[BlackFideId "13404938"]
[WhiteElo "2656"]
[BlackElo "2399"]
[Result "1-0"]
[Round "09"]
[TimeControl "180+1"]
[Date "2022.11.22"]
[WhiteClock "0:00:05"]
[BlackClock "0:00:02"]

1. c4 {[%clk 0:03:00]}  Nf6 {[%clk 0:02:47]} 2. Nc3 {[%clk 0:03:00]}  e5 {[%clk 0:02:47]} 3. Nf3 {[%clk 0:02:59]}  Nc6 {[%clk 0:02:46]} 4. g3 {[%clk 0:02:56]}  Nd4 {[%clk 0:02:46]} 5. Bg2 {[%clk 0:02:52]}  Nxf3+ {[%clk 0:02:45]} 6. Bxf3 {[%clk 0:02:53]}  Bb4 {[%clk 0:02:46]} 7. Nd5 {[%clk 0:02:46]}  Nxd5 {[%clk 0:02:45]} 8. Bxd5 {[%clk 0:02:45]}  O-O {[%clk 0:02:44]} 9. O-O {[%clk 0:02:44]}  a5 {[%clk 0:02:41]} 10. Bg2 {[%clk 0:02:43]}  Bc5 {[%clk 0:02:28]} 11. d3 {[%clk 0:02:40]}  d6 {[%clk 0:02:27]} 12. Bd2 {[%clk 0:02:38]}  c6 {[%clk 0:02:26]} 13. Qc2 {[%clk 0:02:36]}  Bf5 {[%clk 0:02:25]} 14. Bc3 {[%clk 0:02:34]}  Qb6 {[%clk 0:02:22]} 15. e3 {[%clk 0:02:27]}  Rfe8 {[%clk 0:02:07]} 16. Qd2 {[%clk 0:02:26]}  Bb4 {[%clk 0:02:05]} 17. Rac1 {[%clk 0:02:20]}  Rad8 {[%clk 0:02:00]} 18. a3 {[%clk 0:02:10]}  Bxc3 {[%clk 0:02:00]} 19. Rxc3 {[%clk 0:02:11]}  Bg6 {[%clk 0:01:52]} 20. Rfc1 {[%clk 0:02:04]}  h6 {[%clk 0:01:49]} 21. h4 {[%clk 0:01:59]}  f6 {[%clk 0:01:44]} 22. Kh2 {[%clk 0:01:58]}  Kh8 {[%clk 0:01:41]} 23. b4 {[%clk 0:01:48]}  d5 {[%clk 0:01:12]} 24. cxd5 {[%clk 0:01:45]}  cxd5 {[%clk 0:01:13]} 25. Rc7 {[%clk 0:01:38]}  axb4 {[%clk 0:01:11]} 26. axb4 {[%clk 0:01:39]}  Rd6 {[%clk 0:01:08]} 27. R1c5 {[%clk 0:01:05]}  Red8 {[%clk 0:01:02]} 28. d4 {[%clk 0:01:03]}  Be4 {[%clk 0:00:48]} 29. f3 {[%clk 0:00:36]}  Bg6 {[%clk 0:00:47]} 30. Qc3 {[%clk 0:00:35]}  Re8 {[%clk 0:00:20]} 31. Rc8 {[%clk 0:00:25]}  exd4 {[%clk 0:00:16]} 32. Rxe8+ {[%clk 0:00:21]}  Bxe8 {[%clk 0:00:17]} 33. Qxd4 {[%clk 0:00:21]}  Qd8 {[%clk 0:00:10]} 34. Qc3 {[%clk 0:00:15]}  Bd7 {[%clk 0:00:08]} 35. f4 {[%clk 0:00:15]}  Be6 {[%clk 0:00:09]} 36. Qd4 {[%clk 0:00:15]}  Qd7 {[%clk 0:00:07]} 37. Rc2 {[%clk 0:00:15]}  Bf5 {[%clk 0:00:08]} 38. Rd2 {[%clk 0:00:15]}  Be6 {[%clk 0:00:08]} 39. e4 {[%clk 0:00:16]}  Qd8 {[%clk 0:00:08]} 40. exd5 {[%clk 0:00:14]}  Bf7 {[%clk 0:00:09]} 41. Qc5 {[%clk 0:00:14]}  b6 {[%clk 0:00:09]} 42. Qd4 {[%clk 0:00:14]}  Qd7 {[%clk 0:00:09]} 43. Rc2 {[%clk 0:00:14]}  Qd8 {[%clk 0:00:09]} 44. Rd2 {[%clk 0:00:13]}  Qd7 {[%clk 0:00:10]} 45. Be4 {[%clk 0:00:13]}  Qd8 {[%clk 0:00:07]} 46. Kg2 {[%clk 0:00:13]}  Qd7 {[%clk 0:00:07]} 47. Bf3 {[%clk 0:00:13]}  Kg8 {[%clk 0:00:05]} 48. Kf2 {[%clk 0:00:14]}  Kf8 {[%clk 0:00:06]} 49. Rc2 {[%clk 0:00:11]}  Bxd5 {[%clk 0:00:05]} 50. Rd2 {[%clk 0:00:12]}  Qh3 {[%clk 0:00:04]} 51. Bxd5 {[%clk 0:00:12]}  Qh2+ {[%clk 0:00:05]} 52. Kf3 {[%clk 0:00:09]}  Qh1+ {[%clk 0:00:05]} 53. Ke3 {[%clk 0:00:07]}  Qe1+ {[%clk 0:00:04]} 54. Kd3 {[%clk 0:00:07]}  Qxg3+ {[%clk 0:00:05]} 55. Kc2 {[%clk 0:00:07]}  Qa3 {[%clk 0:00:05]} 56. Qc3 {[%clk 0:00:06]}  Qa8 {[%clk 0:00:02]} 57. Bxa8 {[%clk 0:00:05]} 1-0


[Site "https://www.chess.com"]

[Event "Titled Tuesday Blitz November 22 Late 2022"]
[White "Sanchez, Robert"]
[Black "Ibadov, Dashgyn"]
[WhiteFideId "2034360"]
[BlackFideId "24107514"]
[WhiteElo "2314"]
[BlackElo "2208"]
[Result "0-1"]
[Round "09"]
[TimeControl "180+1"]
[Date "2022.11.23"]
[WhiteClock "0:01:58"]
[BlackClock "0:00:48"]

1. e4 {[%clk 0:03:00]}  e5 {[%clk 0:02:58]} 2. Nf3 {[%clk 0:03:00]}  Nc6 {[%clk 0:02:58]} 3. Bb5 {[%clk 0:03:00]}  a6 {[%clk 0:02:59]} 4. Ba4 {[%clk 0:03:01]}  Nf6 {[%clk 0:02:58]} 5. d3 {[%clk 0:03:01]}  b5 {[%clk 0:02:58]} 6. Bb3 {[%clk 0:03:01]}  Bc5 {[%clk 0:02:59]} 7. Nc3 {[%clk 0:03:01]}  d6 {[%clk 0:02:57]} 8. Bg5 {[%clk 0:03:00]}  h6 {[%clk 0:02:57]} 9. Bh4 {[%clk 0:03:01]}  g5 {[%clk 0:02:57]} 10. Nxg5 {[%clk 0:03:01]}  hxg5 {[%clk 0:02:54]} 11. Bxg5 {[%clk 0:03:02]}  Bg4 {[%clk 0:01:50]} 12. f3 {[%clk 0:02:38]}  Be6 {[%clk 0:01:45]} 13. Nd5 {[%clk 0:02:37]}  Bxd5 {[%clk 0:01:41]} 14. Bxd5 {[%clk 0:02:37]}  Kd7 {[%clk 0:01:37]} 15. f4 {[%clk 0:02:26]}  Qg8 {[%clk 0:01:17]} 16. Bxf6 {[%clk 0:02:15]}  Qxg2 {[%clk 0:01:16]} 17. Rf1 {[%clk 0:02:14]}  Rxh2 {[%clk 0:01:03]} 18. Bh4 {[%clk 0:01:59]}  Rxh4 {[%clk 0:00:57]} 19. Qe2 {[%clk 0:01:59]}  Qg3+ {[%clk 0:00:52]} 20. Kd1 {[%clk 0:01:58]}  Rh2 {[%clk 0:00:48]} 0-1


[Site "https://www.chess.com"]

[Event "Titled Tuesday Blitz November 22 Late 2022"]
[White "Sargsyan, Anna M."]
[Black "Toniutti, Ezio"]
[WhiteFideId "13308130"]
[BlackFideId "113034"]
[WhiteElo "2284"]
[BlackElo "2215"]
[Result "0-1"]
[Round "09"]
[TimeControl "180+1"]
[Date "2022.11.23"]
[WhiteClock "0:01:20"]
[BlackClock "0:01:25"]

1. d4 {[%clk 0:02:56]}  d5 {[%clk 0:02:59]} 2. c4 {[%clk 0:02:57]}  c6 {[%clk 0:02:59]} 3. Nf3 {[%clk 0:02:58]}  Nf6 {[%clk 0:02:59]} 4. Nc3 {[%clk 0:02:59]}  a6 {[%clk 0:02:56]} 5. cxd5 {[%clk 0:02:58]}  cxd5 {[%clk 0:02:55]} 6. Bf4 {[%clk 0:02:59]}  Nc6 {[%clk 0:02:56]} 7. e3 {[%clk 0:02:59]}  Bg4 {[%clk 0:02:56]} 8. h3 {[%clk 0:02:56]}  Bxf3 {[%clk 0:02:56]} 9. Qxf3 {[%clk 0:02:57]}  e6 {[%clk 0:02:56]} 10. Bd3 {[%clk 0:02:57]}  Bd6 {[%clk 0:02:56]} 11. Bg5 {[%clk 0:02:56]}  h6 {[%clk 0:02:54]} 12. O-O {[%clk 0:02:57]}  hxg5 {[%clk 0:02:54]} 13. Rfd1 {[%clk 0:02:52]}  Ke7 {[%clk 0:02:47]} 14. Rac1 {[%clk 0:02:49]}  Rc8 {[%clk 0:02:46]} 15. e4 {[%clk 0:02:45]}  Nxd4 {[%clk 0:02:34]} 16. Qe3 {[%clk 0:02:45]}  e5 {[%clk 0:02:25]} 17. Qxg5 {[%clk 0:02:36]}  Kf8 {[%clk 0:02:25]} 18. exd5 {[%clk 0:02:33]}  g6 {[%clk 0:02:10]} 19. f4 {[%clk 0:02:18]}  Rh5 {[%clk 0:01:53]} 20. Qg3 {[%clk 0:02:15]}  exf4 {[%clk 0:01:52]} 21. Qf2 {[%clk 0:02:14]}  Nf5 {[%clk 0:01:51]} 22. Ne2 {[%clk 0:02:02]}  Kg7 {[%clk 0:01:46]} 23. Nxf4 {[%clk 0:01:53]}  Bxf4 {[%clk 0:01:44]} 24. Rxc8 {[%clk 0:01:51]}  Qxc8 {[%clk 0:01:38]} 25. Qxf4 {[%clk 0:01:51]}  Qc5+ {[%clk 0:01:37]} 26. Kh1 {[%clk 0:01:47]}  Qd6 {[%clk 0:01:33]} 27. Qf3 {[%clk 0:01:27]}  Ng3+ {[%clk 0:01:28]} 28. Kg1 {[%clk 0:01:26]}  Rxd5 {[%clk 0:01:26]} 29. a3 {[%clk 0:01:20]}  Nf5 {[%clk 0:01:25]} 0-1


[Site "https://www.chess.com"]

[Event "Titled Tuesday Blitz November 22 Late 2022"]
[White "Shimanov, Aleksandr"]
[Black "Gareyev, Timur"]
[WhiteFideId "4198603"]
[BlackFideId "14200937"]
[WhiteElo "2605"]
[BlackElo "2552"]
[Result "1/2-1/2"]
[Round "09"]
[TimeControl "180+1"]
[Date "2022.11.22"]
[WhiteClock "0:00:04"]
[BlackClock "0:00:05"]

1. e4 {[%clk 0:03:00]}  g6 {[%clk 0:02:46]} 2. d4 {[%clk 0:02:59]}  d6 {[%clk 0:02:46]} 3. c4 {[%clk 0:02:58]}  Bg7 {[%clk 0:02:41]} 4. Ne2 {[%clk 0:02:53]}  Nf6 {[%clk 0:02:26]} 5. Nbc3 {[%clk 0:02:51]}  Nc6 {[%clk 0:02:26]} 6. f3 {[%clk 0:02:50]}  a6 {[%clk 0:02:20]} 7. Be3 {[%clk 0:02:50]}  Rb8 {[%clk 0:02:13]} 8. Rc1 {[%clk 0:02:36]}  O-O {[%clk 0:02:11]} 9. Qd2 {[%clk 0:02:32]}  Bd7 {[%clk 0:02:06]} 10. b3 {[%clk 0:02:21]}  b5 {[%clk 0:02:04]} 11. d5 {[%clk 0:02:18]}  Ne5 {[%clk 0:02:02]} 12. c5 {[%clk 0:02:18]}  b4 {[%clk 0:01:55]} 13. Nd1 {[%clk 0:02:17]}  c6 {[%clk 0:01:55]} 14. dxc6 {[%clk 0:02:12]}  Bxc6 {[%clk 0:01:52]} 15. Nd4 {[%clk 0:02:12]}  Bxe4 {[%clk 0:01:39]} 16. fxe4 {[%clk 0:02:08]}  Nxe4 {[%clk 0:01:40]} 17. Qc2 {[%clk 0:01:58]}  Nxc5 {[%clk 0:01:39]} 18. Be2 {[%clk 0:01:50]}  Rc8 {[%clk 0:01:35]} 19. O-O {[%clk 0:01:25]}  Ncd3 {[%clk 0:01:21]} 20. Qxc8 {[%clk 0:01:24]}  Qxc8 {[%clk 0:01:21]} 21. Rxc8 {[%clk 0:01:25]}  Rxc8 {[%clk 0:01:21]} 22. Nf2 {[%clk 0:01:25]}  Rc3 {[%clk 0:01:07]} 23. Bd2 {[%clk 0:01:12]}  Rc5 {[%clk 0:00:50]} 24. Nxd3 {[%clk 0:00:36]}  Nxd3 {[%clk 0:00:50]} 25. Bxd3 {[%clk 0:00:33]}  Bxd4+ {[%clk 0:00:51]} 26. Kh1 {[%clk 0:00:34]}  a5 {[%clk 0:00:50]} 27. g3 {[%clk 0:00:27]}  Bc3 {[%clk 0:00:45]} 28. Be3 {[%clk 0:00:26]}  Re5 {[%clk 0:00:44]} 29. Rf3 {[%clk 0:00:25]}  d5 {[%clk 0:00:42]} 30. Kg2 {[%clk 0:00:23]}  d4 {[%clk 0:00:41]} 31. Bf4 {[%clk 0:00:21]}  Rc5 {[%clk 0:00:37]} 32. Bc4 {[%clk 0:00:20]}  e6 {[%clk 0:00:34]} 33. Bh6 {[%clk 0:00:20]}  Rc6 {[%clk 0:00:32]} 34. g4 {[%clk 0:00:18]}  a4 {[%clk 0:00:31]} 35. h4 {[%clk 0:00:17]}  a3 {[%clk 0:00:31]} 36. h5 {[%clk 0:00:05]}  Rxc4 {[%clk 0:00:29]} 37. bxc4 {[%clk 0:00:06]}  b3 {[%clk 0:00:29]} 38. axb3 {[%clk 0:00:07]}  a2 {[%clk 0:00:27]} 39. Rf1 {[%clk 0:00:07]}  f5 {[%clk 0:00:24]} 40. hxg6 {[%clk 0:00:06]}  hxg6 {[%clk 0:00:20]} 41. gxf5 {[%clk 0:00:06]}  gxf5 {[%clk 0:00:20]} 42. Kf3 {[%clk 0:00:05]}  Kf7 {[%clk 0:00:20]} 43. Bf4 {[%clk 0:00:02]}  Kf6 {[%clk 0:00:11]} 44. c5 {[%clk 0:00:02]}  e5 {[%clk 0:00:07]} 45. c6 {[%clk 0:00:02]}  e4+ {[%clk 0:00:07]} 46. Kg3 {[%clk 0:00:03]}  Ke6 {[%clk 0:00:07]} 47. c7 {[%clk 0:00:03]}  Kd7 {[%clk 0:00:07]} 48. Rd1 {[%clk 0:00:02]}  a1=Q {[%clk 0:00:07]} 49. Rxa1 {[%clk 0:00:03]}  Bxa1 {[%clk 0:00:08]} 50. Kh4 {[%clk 0:00:03]}  e3 {[%clk 0:00:07]} 51. Kg3 {[%clk 0:00:03]}  Bc3 {[%clk 0:00:06]} 52. Kf3 {[%clk 0:00:03]}  Ba5 {[%clk 0:00:05]} 53. Be5 {[%clk 0:00:03]}  Bb6 {[%clk 0:00:05]} 54. Ke2 {[%clk 0:00:03]}  f4 {[%clk 0:00:03]} 55. Bxf4 {[%clk 0:00:02]}  Bxc7 {[%clk 0:00:04]} 56. Bxe3 {[%clk 0:00:03]}  dxe3 {[%clk 0:00:03]} 57. Kxe3 {[%clk 0:00:04]}  Bd6 {[%clk 0:00:03]} 58. b4 {[%clk 0:00:04]}  Kc6 {[%clk 0:00:04]} 59. b5+ {[%clk 0:00:04]}  Kxb5 {[%clk 0:00:05]} 1/2-1/2


[Site "https://www.chess.com"]

[Event "Titled Tuesday Blitz November 22 Late 2022"]
[White "Simonovic, Miroslav"]
[Black "Polster, Christian"]
[WhiteFideId "919152"]
[BlackFideId "12965081"]
[WhiteElo "2043"]
[BlackElo "2209"]
[Result "1-0"]
[Round "09"]
[TimeControl "180+1"]
[Date "2022.11.23"]
[WhiteClock "0:01:32"]
[BlackClock "0:00:02"]

1. d4 {[%clk 0:03:00]}  d5 {[%clk 0:02:57]} 2. Bg5 {[%clk 0:03:01]}  Nf6 {[%clk 0:02:30]} 3. Bxf6 {[%clk 0:03:01]}  exf6 {[%clk 0:02:27]} 4. e3 {[%clk 0:03:01]}  c6 {[%clk 0:01:50]} 5. a3 {[%clk 0:03:00]}  Bd6 {[%clk 0:01:39]} 6. c4 {[%clk 0:02:59]}  dxc4 {[%clk 0:01:38]} 7. Bxc4 {[%clk 0:03:00]}  O-O {[%clk 0:01:36]} 8. Nc3 {[%clk 0:03:01]}  Qe7 {[%clk 0:01:29]} 9. Nge2 {[%clk 0:02:55]}  Nd7 {[%clk 0:01:10]} 10. b4 {[%clk 0:02:52]}  Nb6 {[%clk 0:00:58]} 11. Bd3 {[%clk 0:02:52]}  f5 {[%clk 0:00:51]} 12. g3 {[%clk 0:02:50]}  Be6 {[%clk 0:00:47]} 13. O-O {[%clk 0:02:49]}  g6 {[%clk 0:00:47]} 14. Na4 {[%clk 0:02:42]}  Bd5 {[%clk 0:00:37]} 15. Nc5 {[%clk 0:02:38]}  Bc4 {[%clk 0:00:19]} 16. Rc1 {[%clk 0:02:25]}  Bxd3 {[%clk 0:00:19]} 17. Qxd3 {[%clk 0:02:25]}  a5 {[%clk 0:00:17]} 18. b5 {[%clk 0:02:22]}  Rac8 {[%clk 0:00:10]} 19. Rc2 {[%clk 0:01:57]}  Rfd8 {[%clk 0:00:09]} 20. Rfc1 {[%clk 0:01:52]}  Bxc5 {[%clk 0:00:08]} 21. Rxc5 {[%clk 0:01:51]}  cxb5 {[%clk 0:00:04]} 22. Qxb5 {[%clk 0:01:46]}  Rxc5 {[%clk 0:00:03]} 23. Rxc5 {[%clk 0:01:46]}  Nd7 {[%clk 0:00:02]} 24. Qxb7 {[%clk 0:01:41]}  Qe6 {[%clk 0:00:02]} 25. Rc8 {[%clk 0:01:32]} 1-0


[Site "https://www.chess.com"]

[Event "Titled Tuesday Blitz November 22 Late 2022"]
[White "Tanenbaum, Zachary"]
[Black "Annaberdiyev, Babageldi"]
[WhiteFideId "2060850"]
[BlackFideId "14000385"]
[WhiteElo "2175"]
[BlackElo "2332"]
[Result "0-1"]
[Round "09"]
[TimeControl "180+1"]
[Date "2022.11.22"]
[WhiteClock "0:00:03"]
[BlackClock "0:00:31"]

1. e4 {[%clk 0:03:00]}  e6 {[%clk 0:03:00]} 2. d4 {[%clk 0:03:00]}  d5 {[%clk 0:03:00]} 3. Nc3 {[%clk 0:03:01]}  Nf6 {[%clk 0:03:00]} 4. Bg5 {[%clk 0:03:01]}  Be7 {[%clk 0:03:00]} 5. e5 {[%clk 0:03:01]}  Nfd7 {[%clk 0:03:01]} 6. h4 {[%clk 0:03:02]}  h6 {[%clk 0:03:01]} 7. Bxe7 {[%clk 0:03:02]}  Qxe7 {[%clk 0:03:02]} 8. Qg4 {[%clk 0:03:02]}  O-O {[%clk 0:03:01]} 9. Nf3 {[%clk 0:02:58]}  f5 {[%clk 0:03:01]} 10. Qg6 {[%clk 0:02:56]}  a6 {[%clk 0:03:01]} 11. O-O-O {[%clk 0:02:55]}  c5 {[%clk 0:03:01]} 12. dxc5 {[%clk 0:02:52]}  Nxc5 {[%clk 0:03:02]} 13. Be2 {[%clk 0:02:37]}  Bd7 {[%clk 0:03:01]} 14. Ng5 {[%clk 0:02:36]}  Qxg5+ {[%clk 0:02:43]} 15. hxg5 {[%clk 0:02:37]}  Be8 {[%clk 0:02:43]} 16. Qxe8 {[%clk 0:01:51]}  Rxe8 {[%clk 0:02:44]} 17. gxh6 {[%clk 0:01:51]}  Nc6 {[%clk 0:01:23]} 18. f4 {[%clk 0:01:20]}  g6 {[%clk 0:01:21]} 19. g4 {[%clk 0:01:10]}  fxg4 {[%clk 0:01:13]} 20. Rdg1 {[%clk 0:01:09]}  Kh7 {[%clk 0:01:11]} 21. Rxg4 {[%clk 0:01:09]}  Rac8 {[%clk 0:01:08]} 22. Kb1 {[%clk 0:00:56]}  b5 {[%clk 0:01:06]} 23. a3 {[%clk 0:00:48]}  Nd4 {[%clk 0:01:02]} 24. Bd3 {[%clk 0:00:45]}  Nxd3 {[%clk 0:00:58]} 25. cxd3 {[%clk 0:00:46]}  Rf8 {[%clk 0:00:55]} 26. Rh2 {[%clk 0:00:28]}  Rc7 {[%clk 0:00:51]} 27. Ne2 {[%clk 0:00:16]}  Nf5 {[%clk 0:00:45]} 28. Ng3 {[%clk 0:00:10]}  Ne3 {[%clk 0:00:41]} 29. Rgh4 {[%clk 0:00:10]}  Rfc8 {[%clk 0:00:35]} 30. Rh1 {[%clk 0:00:09]}  Rc2 {[%clk 0:00:34]} 31. Re1 {[%clk 0:00:08]}  Ng2 {[%clk 0:00:33]} 32. Rg4 {[%clk 0:00:08]}  Nxe1 {[%clk 0:00:33]} 33. Ka2 {[%clk 0:00:04]}  Nxd3 {[%clk 0:00:33]} 34. Ka1 {[%clk 0:00:02]}  Rxb2 {[%clk 0:00:32]} 35. Ne2 {[%clk 0:00:02]}  Rxe2 {[%clk 0:00:31]} 36. Rg1 {[%clk 0:00:03]}  Rcc2 {[%clk 0:00:31]} 0-1


[Site "https://www.chess.com"]